bitfinex/quotes_BTCUSD_20240901
["timestamp","ask_amount","ask_price","bid_price","bid_amount"]
[1725168632589,0.172091,58109.0,58104.0,0.24482101]
[1725168632832,0.172091,58109.0,58104.0,0.07271701]
[1725168633091,0.344107,58122.0,58105.0,0.344204]
[1725168633341,0.344107,58122.0,58108.0,0.172092]
[1725168633342,1.276,58117.0,58108.0,0.172092]
[1725168633591,0.172082,58112.0,58110.0,0.1837]
[1725168633939,0.069014,58118.0,58110.0,0.1837]
[1725168633940,0.344125,58119.0,58110.0,0.3289]
[1725168634041,0.172069,58116.0,58112.0,0.172081]
[1725168634290,0.172059,58120.0,58115.0,0.172071]
[1725168634516,0.4662,58121.0,58115.0,0.172071]
[1725168634517,0.638256,58121.0,58115.0,0.172071]
[1725168634736,0.4662,58121.0,58114.0,0.19917917]
[1725168634955,0.069007,58124.0,58115.0,0.1837]
[1725168635205,0.344086,58125.0,58120.0,0.1837]
[1725168635443,0.344086,58125.0,58114.0,0.344149]
[1725168635444,0.50540786,58124.0,58114.0,0.19917917]
[1725168635680,0.50540786,58124.0,58113.0,0.1837]
[1725168635681,0.516226,58114.0,58113.0,0.1837]
[1725168635920,1.204528,58114.0,58113.0,0.1837]
[1725168636423,1.204528,58114.0,58100.0,0.19917917]
[1725168636424,0.172087,58110.0,58109.0,0.1837]
[1725168636640,0.860435,58110.0,58109.0,0.1837]
[1725168638767,0.860435,58110.0,58106.0,0.1452]
[1725168638768,0.86048,58107.0,58106.0,0.1452]
[1725168639238,0.516288,58107.0,58106.0,0.1452]
[1725168639463,0.86048,58107.0,58106.0,0.1452]
[1725168639895,1.204672,58107.0,58106.0,0.1452]
[1725168640116,0.86051,58105.0,58104.0,0.1837]
[1725168640353,0.445135,58117.0,58101.0,0.0035868]
[1725168640354,0.516333,58102.0,58101.0,0.0035868]
[1725168640800,0.860555,58102.0,58101.0,0.0035868]
[1725168641503,1.204777,58102.0,58101.0,0.0035868]
[1725168642932,1.571999,58102.0,58101.0,0.0035868]
[1725168643174,1.671999,58102.0,58101.0,0.0035868]
[1725168643399,3.141199,58102.0,58101.0,0.0035868]
[1725168643631,3.485421,58102.0,58101.0,0.0035868]
[1725168643877,3.141199,58102.0,58101.0,0.0035868]
[1725168644101,3.141199,58102.0,58091.0,0.0004]
[1725168644102,0.860612,58098.0,58097.0,0.0075848]
[1725168644333,0.272122,58098.0,58097.0,0.0075848]
[1725168644549,0.1,58098.0,58097.0,0.17191328]
[1725168645034,0.10343517,58098.0,58097.0,0.17191328]
[1725168645266,0.1,58098.0,58097.0,0.17191328]
[1725168645537,0.00343517,58101.0,58097.0,0.17191328]
[1725168645538,0.10343517,58101.0,58097.0,0.17191328]
[1725168645788,0.344206,58105.0,58097.0,0.17191328]
[1725168646010,0.172092,58109.0,58098.0,0.20768233]
[1725168646230,0.172092,58109.0,58099.0,0.172119]
[1725168646231,0.17552717,58109.0,58099.0,0.172119]
[1725168646455,0.17552717,58109.0,58100.0,0.07238456]
[1725168646827,0.00343517,58109.0,58101.0,0.187]
[1725168647043,0.000818,58110.0,58101.0,0.187]
[1725168647254,0.000818,58110.0,58101.0,0.19044208]
[1725168647431,0.000818,58110.0,58102.0,0.08418001]
[1725168647646,0.172906,58110.0,58102.0,0.08418001]
[1725168647846,0.000818,58110.0,58102.0,0.08418001]
[1725168648280,0.000818,58110.0,58102.0,0.25629001]
[1725168648491,0.10425317,58110.0,58102.0,0.25629001]
[1725168648711,0.10425317,58110.0,58103.0,0.08599086]
[1725168648931,0.272905,58110.0,58103.0,0.08599086]
[1725168649434,0.17209,58109.0,58103.0,0.08599086]
[1725168649641,0.100818,58110.0,58103.0,0.08599086]
[1725168650072,0.1,58109.0,58104.0,0.513902]
[1725168650295,0.1,58109.0,58105.0,0.09441089]
[1725168650933,0.1,58109.0,58106.0,0.172099]
[1725168651349,0.000818,58110.0,58106.0,0.344197]
[1725168651572,0.000818,58110.0,58109.0,0.17209]
[1725168651781,0.000818,58110.0,58109.0,0.70327]
[1725168652033,0.000818,58110.0,58109.0,0.83771987]
[1725168652652,0.072879,58119.0,58109.0,1.00980987]
[1725168652857,0.84950986,58123.0,58110.0,0.344172]
[1725168652858,0.344102,58123.0,58110.0,0.344172]
[1725168653080,0.172065,58118.0,58113.0,0.172077]
[1725168653283,0.810319,58120.0,58109.0,0.32144987]
[1725168653284,0.344139,58116.0,58109.0,0.32144987]
[1725168653489,0.172077,58114.0,58110.0,0.10545595]
[1725168653702,0.344142,58116.0,58110.0,0.0544548]
[1725168653703,0.172074,58115.0,58110.0,0.0544548]
[1725168653918,0.344142,58116.0,58110.0,0.0544548]
[1725168653919,0.344142,58116.0,58110.0,0.10545595]
[1725168654152,0.344142,58116.0,58110.0,0.0544548]
[1725168654383,0.172071,58116.0,58111.0,0.22308515]
[1725168654597,0.172072,58115.0,58112.0,0.05410417]
[1725168654799,0.00343517,58116.0,58112.0,0.10559314]
[1725168655024,0.172071,58116.0,58112.0,0.10559314]
[1725168655228,0.172071,58116.0,58112.0,0.05410417]
[1725168655439,0.00343517,58115.0,58113.0,0.14554321]
[1725168655654,0.172075,58114.0,58113.0,0.09405424]
[1725168655868,0.172079,58113.0,58110.0,0.10594377]
[1725168656470,0.172079,58113.0,58110.0,0.0544548]
[1725168656692,0.344148,58115.0,58110.0,0.0544548]
[1725168657056,0.172076,58114.0,58111.0,0.04650328]
[1725168657156,0.444107,58122.0,58111.0,0.04650328]
[1725168657391,0.172061,58119.0,58114.0,0.172075]
[1725168657619,0.172061,58119.0,58115.0,0.172071]
[1725168657835,0.00343517,58121.0,58112.0,0.344157]
[1725168658051,0.00343517,58121.0,58114.0,0.172073]
[1725168658303,0.172059,58120.0,58115.0,0.172071]
[1725168658533,0.17549717,58119.0,58114.0,0.172074]
[1725168658759,0.444107,58122.0,58113.0,0.10277801]
[1725168658760,0.00343517,58118.0,58113.0,0.10277801]
[1725168658990,0.00343517,58118.0,58111.0,0.04650328]
[1725168658991,0.516243,58112.0,58111.0,0.04650328]
[1725168659455,0.1,58122.0,58114.0,0.172074]
[1725168659671,0.49317814,58129.0,58113.0,0.344153]
[1725168659672,0.00343517,58121.0,58113.0,0.344153]
[1725168659888,0.172058,58120.0,58116.0,0.172068]
[1725168660109,0.172058,58120.0,58117.0,0.0516221]
[1725168660340,0.00343517,58121.0,58117.0,0.0516221]
[1725168660567,0.344104,58122.0,58118.0,0.1548]
[1725168660830,0.00343517,58121.0,58118.0,0.1548]
[1725168661018,0.172058,58120.0,58119.0,0.03784901]
[1725168661238,0.344099,58123.0,58119.0,0.03784901]
[1725168661456,0.172056,58121.0,58119.0,0.03784901]
[1725168662371,0.01789053,58136.0,58119.0,0.03784901]
[1725168662372,0.069,58130.0,58121.0,0.344104]
[1725168662596,0.00343517,58146.0,58129.0,0.54097917]
[1725168662829,0.00343517,58146.0,58129.0,0.3418]
[1725168662830,0.50540786,58138.0,58129.0,0.3418]
[1725168663064,0.172031,58129.0,58124.0,0.3418]
[1725168663289,0.172031,58129.0,58119.0,0.19917917]
[1725168663290,0.344083,58126.0,58119.0,0.187]
[1725168663522,0.17205,58123.0,58120.0,0.04706097]
[1725168663971,0.344034,58134.0,58120.0,0.04706097]
[1725168664196,0.172033,58129.0,58122.0,0.17205]
[1725168664426,0.023,58133.0,58124.0,0.344088]
[1725168664747,0.023,58133.0,58126.0,0.172039]
[1725168664748,0.172025,58131.0,58126.0,0.172039]
[1725168664968,0.172023,58132.0,58126.0,0.06110668]
[1725168665183,0.172009,58137.0,58126.0,0.06110668]
[1725168665411,0.172009,58137.0,58124.0,0.19917917]
[1725168665412,0.172009,58137.0,58131.0,0.172024]
[1725168665631,0.172009,58137.0,58127.0,0.531073]
[1725168665632,0.00343517,58140.0,58130.0,0.1548]
[1725168665858,0.172,58140.0,58133.0,0.344038]
[1725168666300,0.171991,58143.0,58134.0,0.19917917]
[1725168666515,0.171991,58143.0,58138.0,0.172004]
[1725168666967,0.00343517,58144.0,58138.0,0.172004]
[1725168667234,0.00343517,58144.0,58139.0,0.362999]
[1725168667466,0.171984,58145.0,58139.0,0.362999]
[1725168667681,0.171984,58145.0,58140.0,0.0707012]
[1725168668153,0.17541417,58147.0,58141.0,0.171995]
[1725168668388,0.443941,58150.0,58141.0,0.171995]
[1725168668389,0.171976,58148.0,58142.0,0.17199]
[1725168668625,0.34395,58148.0,58141.0,0.1534]
[1725168668858,0.443941,58150.0,58141.0,0.1534]
[1725168668859,0.171986,58145.0,58142.0,0.05870982]
[1725168669087,0.171989,58144.0,58142.0,0.05870982]
[1725168669333,0.443942,58150.0,58142.0,0.05870982]
[1725168669556,0.1,58150.0,58143.0,0.04031098]
[1725168669789,0.343926,58152.0,58143.0,0.04031098]
[1725168669790,0.023,58149.0,58143.0,0.04031098]
[1725168670014,0.023,58150.0,58143.0,0.04031098]
[1725168670235,0.171966,58151.0,58145.0,0.171982]
[1725168670463,0.194969,58150.0,58146.0,0.0212293]
[1725168670678,0.194969,58150.0,58147.0,0.191]
[1725168670893,0.023,58150.0,58149.0,0.19917917]
[1725168671151,0.171965,58152.0,58149.0,0.25566002]
[1725168671374,0.023,58153.0,58149.0,0.05648085]
[1725168671375,0.023,58151.0,58149.0,0.05648085]
[1725168671592,0.023,58153.0,58150.0,0.04221102]
[1725168671815,0.014818,58157.0,58150.0,0.04221102]
[1725168672056,0.014818,58157.0,58153.0,0.171958]
[1725168672281,0.014818,58157.0,58151.0,0.343932]
[1725168672282,0.014818,58157.0,58154.0,0.171956]
[1725168672569,0.014818,58157.0,58150.0,0.04221102]
[1725168672806,0.171961,58153.0,58151.0,0.05857902]
[1725168673750,0.014818,58157.0,58151.0,0.05857902]
[1725168673989,0.014818,58157.0,58152.0,0.17196]
[1725168673990,0.023,58156.0,58152.0,0.17196]
[1725168674237,0.014818,58157.0,58153.0,0.25388722]
[1725168674471,0.014818,58157.0,58153.0,0.08193022]
[1725168674689,0.014818,58157.0,58155.0,0.171952]
[1725168674922,0.014818,58157.0,58153.0,0.08193022]
[1725168674923,0.014818,58157.0,58153.0,0.25388922]
[1725168675136,0.014818,58157.0,58153.0,0.42928307]
[1725168675366,0.014818,58157.0,58154.0,0.05300731]
[1725168675585,0.343944,58149.0,58147.0,0.191]
[1725168675809,0.171974,58148.0,58147.0,0.191]
[1725168676044,0.023,58156.0,58147.0,0.191]
[1725168676045,0.34393,58152.0,58147.0,0.191]
[1725168676342,0.023,58151.0,58147.0,0.191]
[1725168676577,0.34391,58155.0,58147.0,0.191]
[1725168676578,0.171963,58152.0,58148.0,0.03664184]
[1725168676807,0.171954,58155.0,58149.0,0.19917917]
[1725168677039,0.014818,58157.0,58154.0,0.19917917]
[1725168677264,0.014818,58157.0,58155.0,0.3444]
[1725168677726,0.014818,58157.0,58155.0,0.516354]
[1725168677960,0.014818,58157.0,58156.0,0.24350432]
[1725168678185,0.014818,58157.0,58156.0,0.93474709]
[1725168678417,0.014818,58157.0,58156.0,1.12230832]
[1725168678647,0.014818,58157.0,58156.0,1.11230932]
[1725168679993,0.014818,58157.0,58156.0,1.26570932]
[1725168680349,0.014818,58157.0,58156.0,1.60961132]
[1725168680660,0.014818,58157.0,58156.0,1.26670932]
[1725168681101,0.014818,58157.0,58156.0,1.61061132]
[1725168681542,0.00818,58161.0,58160.0,0.171939]
[1725168681756,0.00818,58161.0,58160.0,1.24987417]
[1725168682616,0.00818,58161.0,58160.0,0.56211817]
[1725168683302,0.00818,58161.0,58160.0,0.90599617]
[1725168684404,0.00818,58161.0,58160.0,1.59375217]
[1725168684637,0.00818,58161.0,58160.0,1.91570381]
[1725168684869,0.00818,58161.0,58160.0,1.57182581]
[1725168685096,0.00818,58161.0,58160.0,0.88406981]
[1725168685324,0.00818,58161.0,58160.0,0.71213081]
[1725168686005,0.00818,58161.0,58160.0,0.88406981]
[1725168686358,0.00818,58161.0,58160.0,1.22794781]
[1725168687271,0.00818,58161.0,58160.0,1.57182581]
[1725168687732,0.00818,58161.0,58160.0,1.91570381]
[1725168687955,0.00818,58161.0,58160.0,1.57182581]
[1725168689583,0.00818,58161.0,58160.0,1.91570381]
[1725168689817,0.00818,58161.0,58160.0,1.91670381]
[1725168690059,0.00818,58161.0,58160.0,1.92170381]
[1725168690296,0.00818,58169.0,58168.0,1.75478717]
[1725168690531,0.00818,58169.0,58168.0,1.92333881]
[1725168690803,0.00818,58169.0,58168.0,1.03649764]
[1725168691024,0.00818,58169.0,58168.0,0.69266664]
[1725168691268,0.00818,58169.0,58168.0,1.38032864]
[1725168691664,0.00818,58169.0,58168.0,1.72415964]
[1725168692588,0.00318,58169.0,58168.0,1.72415964]
[1725168693336,0.00318,58169.0,58168.0,1.72515964]
[1725168693795,0.00318,58169.0,58168.0,1.72415964]
[1725168694476,0.00318,58169.0,58168.0,1.88367913]
[1725168695594,0.00318,58169.0,58168.0,1.88467913]
[1725168696074,0.00818,58173.0,58172.0,1.55844749]
[1725168696295,0.00818,58181.0,58176.0,1.37117949]
[1725168696529,0.00818,58181.0,58176.0,1.71496349]
[1725168696776,0.00818,58181.0,58176.0,1.71996349]
[1725168696990,0.00818,58181.0,58176.0,2.06374749]
[1725168697220,0.00818,58181.0,58180.0,1.20416]
[1725168697471,0.00818,58181.0,58180.0,1.70569299]
[1725168697696,0.0185285,58193.0,58192.0,1.21334149]
[1725168697914,0.000817,58198.0,58197.0,0.17183]
[1725168698135,0.000817,58198.0,58197.0,0.33134949]
[1725168698355,0.000817,58198.0,58197.0,0.19924921]
[1725168698597,0.000817,58198.0,58197.0,0.45974003]
[1725168698598,0.01867911,58198.0,58197.0,0.45974003]
[1725168698814,0.01867911,58198.0,58197.0,0.28791003]
[1725168699027,0.000817,58198.0,58197.0,0.45974003]
[1725168699246,0.000817,58198.0,58197.0,0.28791003]
[1725168699473,0.000817,58198.0,58188.0,0.1946]
[1725168699764,0.171835,58196.0,58190.0,0.17185]
[1725168699973,0.17184,58194.0,58189.0,0.171853]
[1725168700191,0.171834,58196.0,58190.0,0.171849]
[1725168700645,0.171836,58195.0,58190.0,0.171849]
[1725168700868,0.000817,58198.0,58194.0,0.19924921]
[1725168701095,0.000817,58198.0,58196.0,0.171832]
[1725168701770,0.000817,58198.0,58197.0,0.17183]
[1725168702506,0.000817,58198.0,58191.0,0.09094152]
[1725168702740,0.000817,58198.0,58194.0,0.37108721]
[1725168703444,0.000817,58198.0,58195.0,0.171835]
[1725168703686,0.000817,58198.0,58194.0,0.19924921]
[1725168704155,0.000817,58198.0,58197.0,0.17183]
[1725168704373,0.000817,58198.0,58197.0,0.51549]
[1725168704620,0.000817,58198.0,58197.0,0.62133202]
[1725168705064,0.171841,58193.0,58192.0,0.04847907]
[1725168705319,0.159,58197.0,58178.0,0.19924921]
[1725168705320,0.00343517,58196.0,58178.0,0.19924921]
[1725168705535,0.343718,58188.0,58178.0,0.19924921]
[1725168705782,0.023,58196.0,58183.0,0.19924921]
[1725168706007,0.343713,58188.0,58183.0,0.19924921]
[1725168706232,0.171864,58186.0,58183.0,0.19924921]
[1725168706451,0.343713,58188.0,58184.0,0.07148852]
[1725168706671,0.171865,58186.0,58184.0,0.07148852]
[1725168707131,0.023,58196.0,58184.0,0.07148852]
[1725168707132,0.343667,58196.0,58189.0,0.171851]
[1725168707390,0.00818,58210.0,58189.0,0.171851]
[1725168707391,0.171837,58195.0,58189.0,0.3345]
[1725168707645,0.000817,58198.0,58189.0,0.3345]
[1725168707646,0.000817,58198.0,58191.0,0.343694]
[1725168707855,0.000817,58198.0,58196.0,0.19924921]
[1725168708285,0.000817,58198.0,58197.0,0.00343628]
[1725168708496,0.000817,58198.0,58197.0,0.17183]
[1725168708945,0.000817,58198.0,58197.0,0.51549]
[1725168709840,0.000817,58198.0,58197.0,0.85915]
[1725168710125,0.000817,58198.0,58197.0,0.84489732]
[1725168711283,0.000817,58198.0,58197.0,1.18855732]
[1725168712002,0.000817,58198.0,58197.0,0.84489732]
[1725168712713,0.000817,58198.0,58197.0,1.18855732]
[1725168713603,0.000817,58198.0,58197.0,0.84489732]
[1725168714304,0.000817,58198.0,58197.0,1.18855732]
[1725168714524,0.343589,58209.0,58204.0,0.19924921]
[1725168714733,0.171793,58210.0,58204.0,0.19924921]
[1725168715002,0.194796,58209.0,58205.0,0.00343577]
[1725168715195,0.171792,58210.0,58205.0,0.17524079]
[1725168715408,0.171792,58210.0,58206.0,0.0374493]
[1725168716078,0.171794,58209.0,58206.0,0.0374493]
[1725168716326,0.17179,58211.0,58206.0,0.2092513]
[1725168716543,0.21083652,58214.0,58208.0,0.171797]
[1725168716768,0.194783,58213.0,58209.0,0.0556286]
[1725168717233,0.171785,58212.0,58209.0,0.0556286]
[1725168717469,0.023,58213.0,58209.0,0.0556286]
[1725168717725,0.18991652,58214.0,58209.0,0.43010733]
[1725168717940,0.023,58213.0,58210.0,0.08111606]
[1725168718381,0.17178,58214.0,58212.0,0.15933909]
[1725168718613,0.023,58213.0,58210.0,0.08111606]
[1725168718898,0.023,58215.0,58206.0,0.0374493]
[1725168718899,0.1718,58207.0,58206.0,0.0374493]
[1725168719139,0.343586,58210.0,58201.0,0.171817]
[1725168719140,0.171804,58206.0,58201.0,0.171817]
[1725168719583,0.171805,58206.0,58203.0,0.15933909]
[1725168719795,0.171805,58206.0,58204.0,0.01593391]
[1725168720451,0.171801,58207.0,58204.0,0.01593391]
[1725168720679,0.171806,58205.0,58204.0,0.01593391]
[1725168721324,0.343602,58207.0,58204.0,0.01593391]
[1725168721325,0.171802,58207.0,58204.0,0.01593391]
[1725168721546,0.023,58206.0,58205.0,0.0347086]
[1725168721763,0.171802,58207.0,58205.0,0.0347086]
[1725168721764,0.171801,58207.0,58205.0,0.0347086]
[1725168722938,0.536279,58211.0,58205.0,0.0347086]
[1725168722939,0.51541,58206.0,58205.0,0.0347086]
[1725168723161,0.171815,58202.0,58199.0,0.15933909]
[1725168723613,0.343619,58204.0,58199.0,0.15933909]
[1725168723614,0.171819,58201.0,58199.0,0.15933909]
[1725168723864,0.171821,58200.0,58199.0,0.15933909]
[1725168724105,0.515463,58200.0,58199.0,0.15933909]
[1725168724349,0.515463,58200.0,58188.0,0.343708]
[1725168724350,0.2157,58200.0,58187.0,0.15933909]
[1725168724582,0.023,58199.0,58187.0,0.15933909]
[1725168724806,0.343673,58195.0,58187.0,0.15933909]
[1725168725015,0.343691,58192.0,58188.0,0.01593391]
[1725168725359,0.343655,58198.0,58188.0,0.01593391]
[1725168725360,0.3477,58189.0,58188.0,0.01593391]
[1725168725593,0.171874,58182.0,58179.0,0.15933909]
[1725168725830,0.515622,58182.0,58179.0,0.15933909]
[1725168726064,0.171874,58182.0,58179.0,0.15933909]
[1725168726312,0.171874,58182.0,58181.0,0.01692248]
[1725168726313,0.515622,58182.0,58181.0,0.01692248]
[1725168726602,0.515622,58182.0,58181.0,0.0008987]
[1725168726603,0.88237,58182.0,58181.0,0.0008987]
[1725168726825,1.408118,58182.0,58181.0,0.0008987]
[1725168727773,0.205,58182.0,58181.0,0.0008987]
[1725168727984,0.023,58182.0,58181.0,0.0008987]
[1725168728203,0.194872,58183.0,58181.0,0.03411078]
[1725168728420,0.171874,58182.0,58181.0,0.0008987]
[1725168728638,0.171863,58186.0,58181.0,0.0008987]
[1725168728853,0.023,58185.0,58181.0,0.0008987]
[1725168729082,0.171869,58184.0,58182.0,0.01605987]
[1725168729351,0.194864,58186.0,58182.0,0.01605987]
[1725168729570,0.182,58192.0,58183.0,0.19938723]
[1725168729804,0.01784136,58193.0,58184.0,0.02541524]
[1725168730019,0.01784136,58193.0,58190.0,0.171849]
[1725168730229,0.343673,58195.0,58184.0,0.0219783]
[1725168730509,0.343695,58191.0,58184.0,0.0219783]
[1725168730731,0.3316,58212.0,58190.0,0.343696]
[1725168730949,0.3316,58212.0,58194.0,0.54306423]
[1725168730950,0.50540786,58209.0,58194.0,0.54306423]
[1725168731191,0.50540786,58209.0,58196.0,0.171832]
[1725168731192,0.171814,58203.0,58196.0,0.171832]
[1725168731420,0.171807,58205.0,58194.0,0.19938723]
[1725168731653,0.171793,58210.0,58203.0,0.171811]
[1725168731868,0.171798,58208.0,58204.0,0.0171811]
[1725168732523,0.343585,58210.0,58204.0,0.0171811]
[1725168732524,0.1718,58207.0,58204.0,0.0171811]
[1725168732738,0.171796,58209.0,58204.0,0.0171811]
[1725168732951,0.171797,58208.0,58204.0,0.0171811]
[1725168733642,0.171806,58205.0,58204.0,0.0171811]
[1725168733854,0.194806,58205.0,58204.0,0.0171811]
[1725168734070,0.194806,58205.0,58199.0,0.171823]
[1725168734380,0.023,58204.0,58197.0,0.171829]
[1725168734600,0.171814,58203.0,58198.0,0.171827]
[1725168734821,0.171859,58188.0,58182.0,0.01605987]
[1725168735058,0.171859,58188.0,58182.0,0.18793287]
[1725168735518,0.343705,58190.0,58183.0,0.171869]
[1725168735519,0.182,58189.0,58183.0,0.171869]
[1725168735742,0.023,58188.0,58182.0,0.01605987]
[1725168735958,0.194859,58188.0,58183.0,0.01888396]
[1725168736188,0.171859,58187.0,58183.0,0.01888396]
[1725168736414,0.515605,58184.0,58183.0,0.01888396]
[1725168736640,0.171874,58182.0,58181.0,0.0008987]
[1725168737335,0.515607,58184.0,58181.0,0.0008987]
[1725168737566,0.171871,58183.0,58182.0,0.02002859]
[1725168737803,0.023,58186.0,58181.0,0.0008987]
[1725168737804,0.171874,58182.0,58181.0,0.0008987]
[1725168738033,0.515622,58182.0,58181.0,0.0008987]
[1725168738230,0.88237,58182.0,58181.0,0.0008987]
[1725168739175,1.557718,58182.0,58181.0,0.0008987]
[1725168740589,1.385844,58182.0,58181.0,0.0008987]
[1725168740783,1.557718,58182.0,58181.0,0.0008987]
[1725168741056,0.847337,58169.0,58168.0,0.0008987]
[1725168741303,0.343788,58176.0,58147.0,0.50630656]
[1725168741304,0.515923,58148.0,58147.0,0.50630656]
[1725168741515,1.203821,58148.0,58147.0,0.0008987]
[1725168741781,1.326821,58148.0,58147.0,0.0008987]
[1725168742930,0.638923,58148.0,58147.0,0.0008987]
[1725168743411,1.67077,58148.0,58147.0,0.0008987]
[1725168743623,1.326821,58148.0,58147.0,0.0008987]
[1725168743853,1.508821,58148.0,58147.0,0.0008987]
[1725168744611,1.164872,58148.0,58147.0,0.0008987]
[1725168745742,0.820923,58148.0,58147.0,0.0008987]
[1725168745931,0.343922,58153.0,58147.0,0.0008987]
[1725168746169,0.171967,58151.0,58147.0,0.0008987]
[1725168746587,0.171967,58151.0,58148.0,0.01818577]
[1725168746814,0.271969,58150.0,58148.0,0.01818577]
[1725168747051,0.271963,58152.0,58147.0,0.0008987]
[1725168747260,0.1,58152.0,58147.0,0.0008987]
[1725168747474,0.1,58152.0,58147.0,0.1728757]
[1725168747727,0.343847,58166.0,58158.0,0.171943]
[1725168747972,0.343814,58171.0,58149.0,0.54333023]
[1725168747973,0.171934,58162.0,58159.0,0.0171943]
[1725168748200,0.343852,58165.0,58154.0,0.35988723]
[1725168748201,0.171929,58164.0,58154.0,0.35988723]
[1725168748657,0.17536617,58163.0,58156.0,0.17195]
[1725168748658,0.17536617,58163.0,58154.0,0.35988723]
[1725168748659,0.171924,58165.0,58154.0,0.35988723]
[1725168748870,0.343839,58167.0,58161.0,0.171934]
[1725168748871,0.171919,58167.0,58161.0,0.171934]
[1725168749092,0.171919,58167.0,58157.0,0.09101393]
[1725168749093,0.171913,58169.0,58163.0,0.171929]
[1725168749304,0.171913,58169.0,58164.0,0.0171929]
[1725168749997,0.34725017,58171.0,58164.0,0.1891179]
[1725168750208,0.343795,58175.0,58164.0,0.0171929]
[1725168750209,0.171905,58172.0,58164.0,0.0171929]
[1725168750418,0.171908,58171.0,58166.0,0.17192]
[1725168750633,0.171906,58172.0,58166.0,0.171919]
[1725168750861,0.171906,58172.0,58167.0,0.171917]
[1725168751092,0.638102,58173.0,58167.0,0.171917]
[1725168751308,0.171912,58169.0,58168.0,0.04207152]
[1725168751521,0.00343517,58172.0,58157.0,0.171947]
[1725168751522,0.171932,58163.0,58157.0,0.171947]
[1725168751964,0.171932,58163.0,58154.0,0.34391]
[1725168751965,0.171925,58165.0,58159.0,0.17194]
[1725168752204,0.171925,58165.0,58160.0,0.2235229]
[1725168752420,0.023,58164.0,58160.0,0.2235229]
[1725168752876,0.17193,58163.0,58160.0,0.0515839]
[1725168753110,0.023,58162.0,58160.0,0.171938]
[1725168753320,0.023,58164.0,58160.0,0.171938]
[1725168753587,0.023,58164.0,58158.0,0.343885]
[1725168753588,0.194928,58164.0,58161.0,0.0515823]
[1725168753807,0.194928,58164.0,58158.0,0.171943]
[1725168755198,0.34643517,58163.0,58146.0,0.20836323]
[1725168755410,0.343895,58158.0,58147.0,0.1728757]
[1725168755645,0.17196,58153.0,58148.0,0.171974]
[1725168755853,0.17196,58153.0,58150.0,0.05417359]
[1725168756340,0.023,58162.0,58150.0,0.05417359]
[1725168756341,0.515898,58151.0,58150.0,0.05417359]
[1725168756592,0.515898,58151.0,58147.0,0.0008987]
[1725168756593,0.171969,58150.0,58147.0,0.0008987]
[1725168758165,0.171974,58148.0,58147.0,0.0008987]
[1725168758396,0.538923,58148.0,58147.0,0.0008987]
[1725168758613,0.882872,58148.0,58147.0,0.0008987]
[1725168759051,0.538923,58148.0,58147.0,0.0008987]
[1725168760187,0.882872,58148.0,58147.0,0.0008987]
[1725168760428,1.387621,58148.0,58147.0,0.0008987]
[1725168760896,1.73157,58148.0,58147.0,0.0008987]
[1725168761146,2.01377,58148.0,58147.0,0.0008987]
[1725168762312,3.28977,58148.0,58147.0,0.0008987]
[1725168764205,3.83310623,58148.0,58147.0,0.0008987]
[1725168764454,3.83510623,58148.0,58147.0,0.0008987]
[1725168765146,3.83510623,58148.0,58146.0,0.008976]
[1725168765147,2.241752,58147.0,58146.0,0.0016847]
[1725168765390,0.85912,58126.0,58125.0,0.008976]
[1725168765608,1.54728,58126.0,58125.0,0.008976]
[1725168765826,1.57028,58126.0,58125.0,0.008976]
[1725168766263,1.67028,58126.0,58125.0,0.008976]
[1725168767125,2.02336,58126.0,58125.0,0.008976]
[1725168767584,3.29036,58126.0,58125.0,0.008976]
[1725168768051,2.96028,58126.0,58125.0,0.008976]
[1725168768976,2.79948,58126.0,58125.0,0.008976]
[1725168769207,2.60328,58126.0,58125.0,0.008976]
[1725168769434,0.9602,58126.0,58125.0,0.008976]
[1725168769656,0.9742,58126.0,58125.0,0.008976]
[1725168770610,0.9972,58126.0,58125.0,0.008976]
[1725168771070,0.63012,58126.0,58125.0,0.008976]
[1725168771303,0.53012,58126.0,58125.0,0.008976]
[1725168771533,0.53012,58126.0,58125.0,0.181019]
[1725168771534,0.014,58126.0,58125.0,0.181019]
[1725168771761,0.014,58126.0,58125.0,0.0279766]
[1725168772002,0.014,58126.0,58125.0,0.008976]
[1725168772217,0.014,58126.0,58125.0,0.181019]
[1725168772449,0.014,58126.0,58125.0,0.525105]
[1725168772675,0.014,58126.0,58125.0,0.724205]
[1725168773172,0.014,58126.0,58125.0,0.380119]
[1725168773391,0.014,58126.0,58125.0,0.10223462]
[1725168773392,0.53012,58126.0,58125.0,0.10223462]
[1725168773620,0.8602,58126.0,58125.0,0.008976]
[1725168773840,0.55012,58126.0,58125.0,0.008976]
[1725168774492,0.8942,58126.0,58125.0,0.008976]
[1725168775356,0.55012,58126.0,58125.0,0.008976]
[1725168775583,0.8942,58126.0,58125.0,0.008976]
[1725168775794,0.8832,58126.0,58125.0,0.008976]
[1725168776030,0.53912,58126.0,58125.0,0.008976]
[1725168776250,0.89292,58126.0,58125.0,0.008976]
[1725168776447,1.251,58126.0,58125.0,0.008976]
[1725168776896,0.8972,58126.0,58125.0,0.008976]
[1725168777126,0.8832,58126.0,58125.0,0.008976]
[1725168777334,0.8972,58126.0,58125.0,0.008976]
[1725168777547,0.55312,58126.0,58125.0,0.008976]
[1725168778007,0.8972,58126.0,58125.0,0.008976]
[1725168778211,0.55312,58126.0,58125.0,0.008976]
[1725168778850,0.53912,58126.0,58125.0,0.008976]
[1725168779313,1.24128,58126.0,58125.0,0.008976]
[1725168779735,1.22728,58126.0,58125.0,0.008976]
[1725168780152,1.24128,58126.0,58125.0,0.008976]
[1725168780673,1.22728,58126.0,58125.0,0.008976]
[1725168780888,1.77916,58126.0,58125.0,0.008976]
[1725168781112,2.03916,58126.0,58125.0,0.008976]
[1725168781580,2.04016,58126.0,58125.0,0.008976]
[1725168781816,2.39024,58126.0,58125.0,0.008976]